[Event "*** Titled Tuesday Blitz"]
[Site "Chess.com"]
[Date "2020.12.01"]
[Round "5"]
[White "rynos0411"]
[Black "Neftegor"]
[Result "1-0"]
[WhiteElo "2377"]
[BlackElo "2510"]
[TimeControl "180+1"]
[EndTime "10:55:43 PST"]
[Termination "rynos0411 won by checkmate"]

1. d4 {[%clk 0:02:50.7]} 1... Nf6 {[%clk 0:02:58.5]} 2. c4 {[%clk 0:02:49.3]}
2... e6 {[%clk 0:02:58.1]} 3. Nf3 {[%clk 0:02:41.6]} 3... Bb4+ {[%clk
0:02:56.8]} 4. Nbd2 {[%clk 0:02:39.6]} 4... O-O {[%clk 0:02:56]} 5. g3 {[%clk
0:02:38.4]} 5... b6 {[%clk 0:02:50.7]} 6. Bg2 {[%clk 0:02:38.2]} 6... Bb7 {[%clk
0:02:50.8]} 7. O-O {[%clk 0:02:37.2]} 7... Bxd2 {[%clk 0:02:48.4]} 8. Bxd2
{[%clk 0:02:34.5]} 8... h6 {[%clk 0:02:48.2]} 9. Bf4 {[%clk 0:02:06.7]} 9... Be4
{[%clk 0:02:45.8]} 10. Rc1 {[%clk 0:02:01.1]} 10... d6 {[%clk 0:02:45.6]} 11. b4
{[%clk 0:01:58.3]} 11... Nbd7 {[%clk 0:02:45.2]} 12. c5 {[%clk 0:01:54.3]} 12...
Ne8 {[%clk 0:02:14.9]} 13. Nd2 {[%clk 0:00:59.5]} 13... Bxg2 {[%clk 0:02:12.6]}
14. Kxg2 {[%clk 0:01:00.4]} 14... e5 {[%clk 0:02:03]} 15. dxe5 {[%clk
0:00:58.1]} 15... dxe5 {[%clk 0:02:03]} 16. Be3 {[%clk 0:00:57.8]} 16... Qe7
{[%clk 0:01:54.6]} 17. Nf3 {[%clk 0:00:50.2]} 17... Ndf6 {[%clk 0:01:43.3]} 18.
Qc2 {[%clk 0:00:43.3]} 18... Nd5 {[%clk 0:01:41.5]} 19. Bd2 {[%clk 0:00:42]}
19... b5 {[%clk 0:01:27.7]} 20. Qe4 {[%clk 0:00:28.9]} 20... c6 {[%clk
0:01:21.6]} 21. Qxe5 {[%clk 0:00:26.8]} 21... Qb7 {[%clk 0:01:15.2]} 22. e4
{[%clk 0:00:24.9]} 22... Ndf6 {[%clk 0:01:14.7]} 23. Bc3 {[%clk 0:00:22.3]}
23... Nc7 {[%clk 0:01:10.5]} 24. Rfe1 {[%clk 0:00:20.3]} 24... Rae8 {[%clk
0:01:08.2]} 25. Qf4 {[%clk 0:00:20.3]} 25... Ne6 {[%clk 0:01:07.2]} 26. Qh4
{[%clk 0:00:20.9]} 26... Nh7 {[%clk 0:01:05.6]} 27. Rcd1 {[%clk 0:00:19.4]}
27... Qc8 {[%clk 0:00:53.2]} 28. Rd6 {[%clk 0:00:18.8]} 28... Neg5 {[%clk
0:00:50.6]} 29. Nxg5 {[%clk 0:00:18.5]} 29... Nxg5 {[%clk 0:00:50.5]} 30. h3
{[%clk 0:00:17.1]} 30... Re6 {[%clk 0:00:48.1]} 31. Rxe6 {[%clk 0:00:17]} 31...
Qxe6 {[%clk 0:00:47.4]} 32. Qg4 {[%clk 0:00:15.3]} 32... Qxa2 {[%clk 0:00:42.1]}
33. h4 {[%clk 0:00:13.5]} 33... Ne6 {[%clk 0:00:41.7]} 34. Rd1 {[%clk
0:00:11.2]} 34... Qc4 {[%clk 0:00:40.5]} 35. Be1 {[%clk 0:00:06.9]} 35... Qc2
{[%clk 0:00:39.8]} 36. Rd7 {[%clk 0:00:06.5]} 36... a5 {[%clk 0:00:37.8]} 37.
bxa5 {[%clk 0:00:06.3]} 37... Qxc5 {[%clk 0:00:37.2]} 38. a6 {[%clk 0:00:06.6]}
38... Qa3 {[%clk 0:00:33.6]} 39. a7 {[%clk 0:00:06]} 39... Nc5 {[%clk
0:00:26.9]} 40. Rc7 {[%clk 0:00:04.4]} 40... Ne6 {[%clk 0:00:26.7]} 41. Rd7
{[%clk 0:00:04.3]} 41... c5 {[%clk 0:00:21.1]} 42. e5 {[%clk 0:00:04.5]} 42...
Qa6 {[%clk 0:00:20.1]} 43. Qe4 {[%clk 0:00:04.1]} 43... c4 {[%clk 0:00:17.8]}
44. Rb7 {[%clk 0:00:04.1]} 44... Nc5 {[%clk 0:00:17.1]} 45. Bb4 {[%clk
0:00:04.6]} 45... Qxb7 {[%clk 0:00:16.1]} 46. Qxb7 {[%clk 0:00:04.3]} 46... Nxb7
{[%clk 0:00:15.4]} 47. Bxf8 {[%clk 0:00:05.2]} 47... Nd8 {[%clk 0:00:14.3]} 48.
a8=Q {[%clk 0:00:06.1]} 48... Ne6 {[%clk 0:00:15]} 49. Qb7 {[%clk 0:00:06.3]}
49... Kh7 {[%clk 0:00:15.2]} 50. Qxb5 {[%clk 0:00:06.8]} 50... Kg6 {[%clk
0:00:15.3]} 51. Qxc4 {[%clk 0:00:07.2]} 51... Nxf8 {[%clk 0:00:14.7]} 52. Qg4+
{[%clk 0:00:07.6]} 52... Kh7 {[%clk 0:00:14.5]} 53. f4 {[%clk 0:00:08.4]} 53...
g6 {[%clk 0:00:13.9]} 54. h5 {[%clk 0:00:08.3]} 54... Kg7 {[%clk 0:00:12.6]} 55.
hxg6 {[%clk 0:00:08.4]} 55... fxg6 {[%clk 0:00:12.5]} 56. f5 {[%clk 0:00:08.7]}
56... h5 {[%clk 0:00:09.5]} 57. Qg5 {[%clk 0:00:06.6]} 57... h4 {[%clk
0:00:08.4]} 58. Qf6+ {[%clk 0:00:06.1]} 58... Kh6 {[%clk 0:00:08.5]} 59. gxh4
{[%clk 0:00:05.4]} 59... Kh5 {[%clk 0:00:08.5]} 60. Qg5# {[%clk 0:00:05.1]} 1-0

[Event "*** Titled Tuesday Blitz"]
[Site "Chess.com"]
[Date "2020.12.01"]
[Round "5"]
[White "Zmeeed63"]
[Black "1977Ivan"]
[Result "0-1"]
[WhiteElo "2415"]
[BlackElo "2677"]
[TimeControl "180+1"]
[EndTime "10:55:49 PST"]
[Termination "1977Ivan won on time"]

1. d4 {[%clk 0:03:00.9]} 1... Nf6 {[%clk 0:02:58.9]} 2. c4 {[%clk 0:02:58.9]}
2... e6 {[%clk 0:02:57.9]} 3. Nc3 {[%clk 0:02:56.4]} 3... Bb4 {[%clk 0:02:57.5]}
4. f3 {[%clk 0:02:52.8]} 4... Nc6 {[%clk 0:02:57.1]} 5. e4 {[%clk 0:02:46.8]}
5... d5 {[%clk 0:02:43.3]} 6. e5 {[%clk 0:02:43.6]} 6... Ng8 {[%clk 0:02:39.3]}
7. cxd5 {[%clk 0:02:37.5]} 7... exd5 {[%clk 0:02:38.5]} 8. a3 {[%clk 0:02:19]}
8... Ba5 {[%clk 0:02:37.7]} 9. Bb5 {[%clk 0:02:13]} 9... Ne7 {[%clk 0:02:32.5]}
10. Bg5 {[%clk 0:02:08.2]} 10... O-O {[%clk 0:02:26.3]} 11. Ne2 {[%clk
0:02:05.1]} 11... Bb6 {[%clk 0:02:11]} 12. Qd2 {[%clk 0:01:56.9]} 12... h6
{[%clk 0:02:01.6]} 13. Bh4 {[%clk 0:01:55.1]} 13... g5 {[%clk 0:01:32]} 14. Bf2
{[%clk 0:01:52.8]} 14... f6 {[%clk 0:01:26.7]} 15. h4 {[%clk 0:01:44.2]} 15...
a6 {[%clk 0:01:03.7]} 16. Bxc6 {[%clk 0:01:42.6]} 16... Nxc6 {[%clk 0:01:04.3]}
17. hxg5 {[%clk 0:01:27.1]} 17... fxe5 {[%clk 0:01:03.5]} 18. Rxh6 {[%clk
0:01:20]} 18... Qe8 {[%clk 0:01:01]} 19. Nxd5 {[%clk 0:01:12.6]} 19... Bf5
{[%clk 0:00:49.6]} 20. Nf6+ {[%clk 0:01:04.8]} 20... Rxf6 {[%clk 0:00:49.3]} 21.
gxf6 {[%clk 0:00:56.9]} 21... Kf7 {[%clk 0:00:37.3]} 22. Qg5 {[%clk 0:00:43.6]}
22... Qf8 {[%clk 0:00:36.5]} 23. O-O-O {[%clk 0:00:14.6]} 23... Nxd4 {[%clk
0:00:09.3]} 24. Nxd4 {[%clk 0:00:14.1]} 24... Bxd4 {[%clk 0:00:09]} 25. Bxd4
{[%clk 0:00:14.1]} 25... exd4 {[%clk 0:00:09.3]} 26. Qxf5 {[%clk 0:00:05.1]}
26... Qxh6+ {[%clk 0:00:07.9]} 27. Kb1 {[%clk 0:00:04.6]} 27... Qxf6 {[%clk
0:00:08.3]} 28. Qxf6+ {[%clk 0:00:04.2]} 28... Kxf6 {[%clk 0:00:09.2]} 29. Rxd4
{[%clk 0:00:05.1]} 29... Rg8 {[%clk 0:00:09.3]} 30. g4 {[%clk 0:00:03.8]} 30...
Rg7 {[%clk 0:00:08.1]} 31. Rf4+ {[%clk 0:00:04.1]} 31... Ke5 {[%clk 0:00:08.1]}
32. Re4+ {[%clk 0:00:04.1]} 32... Kd5 {[%clk 0:00:07.9]} 33. Kc2 {[%clk
0:00:04.5]} 33... Rf7 {[%clk 0:00:07.7]} 34. Re3 {[%clk 0:00:04.8]} 34... Kd4
{[%clk 0:00:08.1]} 35. Rd3+ {[%clk 0:00:05]} 35... Ke5 {[%clk 0:00:08.6]} 36. b4
{[%clk 0:00:04.9]} 36... Kf4 {[%clk 0:00:08.7]} 37. Kc3 {[%clk 0:00:04.7]} 37...
Re7 {[%clk 0:00:08.6]} 38. Kc4 {[%clk 0:00:04.7]} 38... Re6 {[%clk 0:00:07.7]}
39. Kc3 {[%clk 0:00:04]} 39... Rc6+ {[%clk 0:00:07.5]} 40. Kd2 {[%clk 0:00:03]}
40... Rh6 {[%clk 0:00:07.4]} 41. Kc3 {[%clk 0:00:02.5]} 41... Rc6+ {[%clk
0:00:07.3]} 42. Kd2 {[%clk 0:00:02.7]} 42... Re6 {[%clk 0:00:07.2]} 43. Kc3
{[%clk 0:00:02.4]} 43... b6 {[%clk 0:00:07]} 44. a4 {[%clk 0:00:01.9]} 44... c6
{[%clk 0:00:06.6]} 45. Kb3 {[%clk 0:00:02.3]} 45... b5 {[%clk 0:00:06.5]} 46.
axb5 {[%clk 0:00:02.6]} 46... cxb5 {[%clk 0:00:06.2]} 47. Kc3 {[%clk 0:00:03.5]}
47... Rc6+ {[%clk 0:00:06.2]} 48. Kb3 {[%clk 0:00:03.8]} 48... Rc4 {[%clk
0:00:05]} 49. Rd6 {[%clk 0:00:01.8]} 49... Kxf3 {[%clk 0:00:01.3]} 50. Rxa6
{[%clk 0:00:01.7]} 50... Rxg4 {[%clk 0:00:01.8]} 51. Rb6 {[%clk 0:00:01.9]}
51... Rg5 {[%clk 0:00:01.8]} 52. Kc3 {[%clk 0:00:02.1]} 52... Ke4 {[%clk
0:00:02.4]} 53. Re6+ {[%clk 0:00:01]} 53... Kd5 {[%clk 0:00:01.8]} 54. Rb6
{[%clk 0:00:01.4]} 54... Rg3+ {[%clk 0:00:02.7]} 0-1

[Event "*** Titled Tuesday Blitz"]
[Site "Chess.com"]
[Date "2020.12.01"]
[Round "5"]
[White "Sergey85Rodchenkov"]
[Black "PawnEatingZombie"]
[Result "1-0"]
[WhiteElo "2454"]
[BlackElo "2177"]
[TimeControl "180+1"]
[EndTime "10:55:49 PST"]
[Termination "Sergey85Rodchenkov won on time"]

1. e4 {[%clk 0:02:37.2]} 1... c6 {[%clk 0:02:58.2]} 2. d4 {[%clk 0:02:36.7]}
2... d5 {[%clk 0:02:59.1]} 3. exd5 {[%clk 0:02:37.3]} 3... cxd5 {[%clk
0:02:58.9]} 4. c4 {[%clk 0:02:38]} 4... Nf6 {[%clk 0:02:57.5]} 5. Nc3 {[%clk
0:02:38.5]} 5... g6 {[%clk 0:02:57.4]} 6. Qb3 {[%clk 0:02:37.8]} 6... Bg7 {[%clk
0:02:57.2]} 7. cxd5 {[%clk 0:02:37.9]} 7... O-O {[%clk 0:02:57.7]} 8. Be2 {[%clk
0:02:38.3]} 8... Nbd7 {[%clk 0:02:58]} 9. Bf3 {[%clk 0:02:38.3]} 9... Nb6 {[%clk
0:02:58.6]} 10. Bg5 {[%clk 0:02:38.7]} 10... a5 {[%clk 0:02:57.5]} 11. a4 {[%clk
0:02:38.1]} 11... Bf5 {[%clk 0:02:54.9]} 12. Rd1 {[%clk 0:02:37.3]} 12... Qd6
{[%clk 0:02:35.6]} 13. Nge2 {[%clk 0:02:36.1]} 13... Qb4 {[%clk 0:02:34.1]} 14.
Qa2 {[%clk 0:02:04.4]} 14... Bc2 {[%clk 0:02:31.8]} 15. Rc1 {[%clk 0:01:58.8]}
15... Bb3 {[%clk 0:02:31.7]} 16. Qa1 {[%clk 0:01:53]} 16... Nfxd5 {[%clk
0:02:24.1]} 17. O-O {[%clk 0:01:51.6]} 17... Nxc3 {[%clk 0:02:04.7]} 18. bxc3
{[%clk 0:01:45.5]} 18... Qxa4 {[%clk 0:01:56.6]} 19. Bxb7 {[%clk 0:01:42]} 19...
Rab8 {[%clk 0:01:54.8]} 20. Bf3 {[%clk 0:01:41.7]} 20... e6 {[%clk 0:01:49.7]}
21. h4 {[%clk 0:01:26.8]} 21... Rfc8 {[%clk 0:01:45.5]} 22. Bf4 {[%clk
0:01:21.9]} 22... e5 {[%clk 0:01:39.1]} 23. dxe5 {[%clk 0:01:15.1]} 23... Be6
{[%clk 0:01:17.3]} 24. Nd4 {[%clk 0:01:09.4]} 24... Qxa1 {[%clk 0:01:12.8]} 25.
Rxa1 {[%clk 0:01:08.9]} 25... Rxc3 {[%clk 0:01:12.1]} 26. Nxe6 {[%clk
0:01:06.5]} 26... fxe6 {[%clk 0:01:09.9]} 27. Rxa5 {[%clk 0:01:06.8]} 27... Rf8
{[%clk 0:00:52.5]} 28. Bg3 {[%clk 0:01:03.2]} 28... Rcxf3 {[%clk 0:00:43.3]} 29.
gxf3 {[%clk 0:01:02.8]} 29... Nc4 {[%clk 0:00:44.2]} 30. Ra6 {[%clk 0:00:54.9]}
30... Nd2 {[%clk 0:00:43.9]} 31. Rd1 {[%clk 0:00:47.5]} 31... Nxf3+ {[%clk
0:00:43.8]} 32. Kg2 {[%clk 0:00:48.1]} 32... Nxe5 {[%clk 0:00:44.2]} 33. Rxe6
{[%clk 0:00:46.5]} 33... Ng4 {[%clk 0:00:39.9]} 34. Rd7 {[%clk 0:00:44.8]} 34...
Bf6 {[%clk 0:00:29.8]} 35. Ra6 {[%clk 0:00:39.7]} 35... Rf7 {[%clk 0:00:20.5]}
36. Raa7 {[%clk 0:00:37.9]} 36... Rxd7 {[%clk 0:00:19.8]} 37. Rxd7 {[%clk
0:00:37.8]} 37... Nh6 {[%clk 0:00:19.7]} 38. Rb7 {[%clk 0:00:36.1]} 38... Nf5
{[%clk 0:00:19.1]} 39. Kh3 {[%clk 0:00:35.5]} 39... h5 {[%clk 0:00:17.1]} 40.
Ra7 {[%clk 0:00:33.2]} 40... Kf8 {[%clk 0:00:11.4]} 41. Ra4 {[%clk 0:00:28.9]}
41... Kf7 {[%clk 0:00:10.7]} 42. Kg2 {[%clk 0:00:28.9]} 42... Kg7 {[%clk
0:00:08.3]} 43. Kf3 {[%clk 0:00:28.6]} 43... Kf7 {[%clk 0:00:07.8]} 44. Kg2
{[%clk 0:00:22.3]} 44... Kg7 {[%clk 0:00:07.4]} 45. f3 {[%clk 0:00:22.1]} 45...
Kf7 {[%clk 0:00:07.4]} 46. Bf2 {[%clk 0:00:22.3]} 46... Kg7 {[%clk 0:00:06.2]}
47. Kf1 {[%clk 0:00:22.2]} 47... Kf7 {[%clk 0:00:05.9]} 48. Ke2 {[%clk
0:00:22.4]} 48... Kg7 {[%clk 0:00:05.7]} 49. Re4 {[%clk 0:00:22.1]} 49... Kf7
{[%clk 0:00:05.9]} 50. Kd3 {[%clk 0:00:22.2]} 50... Kg7 {[%clk 0:00:06.1]} 51.
Kc2 {[%clk 0:00:20.2]} 51... Kf7 {[%clk 0:00:06.5]} 52. Kb3 {[%clk 0:00:20.1]}
52... Kg7 {[%clk 0:00:07.2]} 53. Kb4 {[%clk 0:00:20.4]} 53... Kf7 {[%clk
0:00:08.1]} 54. Ka5 {[%clk 0:00:20]} 54... Kg7 {[%clk 0:00:08.7]} 55. Ra4 {[%clk
0:00:19.8]} 55... Kf7 {[%clk 0:00:08.6]} 56. Kb6 {[%clk 0:00:20.1]} 56... Kg7
{[%clk 0:00:08.5]} 57. Kc6 {[%clk 0:00:20.3]} 57... Kf7 {[%clk 0:00:07.3]} 58.
Kd5 {[%clk 0:00:19.8]} 58... Ne7+ {[%clk 0:00:06.5]} 59. Ke4 {[%clk 0:00:17.9]}
59... Nf5 {[%clk 0:00:06.1]} 60. Ra7+ {[%clk 0:00:16.7]} 60... Kf8 {[%clk
0:00:06.1]} 61. Kd5 {[%clk 0:00:15.2]} 61... Bxh4 {[%clk 0:00:04.2]} 62. Bc5+
{[%clk 0:00:14.6]} 62... Kg8 {[%clk 0:00:03.8]} 63. Ke6 {[%clk 0:00:14.2]} 1-0

[Event "*** Titled Tuesday Blitz"]
[Site "Chess.com"]
[Date "2020.12.01"]
[Round "5"]
[White "chesstatour"]
[Black "KononenkoD"]
[Result "0-1"]
[WhiteElo "1988"]
[BlackElo "2366"]
[TimeControl "180+1"]
[EndTime "10:55:49 PST"]
[Termination "KononenkoD won on time"]

1. c4 {[%clk 0:03:00.9]} 1... c5 {[%clk 0:03:00.1]} 2. Nc3 {[%clk 0:02:58.3]}
2... Nc6 {[%clk 0:03:00.5]} 3. Nf3 {[%clk 0:02:58.3]} 3... g6 {[%clk 0:03:00]}
4. d4 {[%clk 0:02:57.9]} 4... cxd4 {[%clk 0:03:00.9]} 5. Nxd4 {[%clk 0:02:57.7]}
5... Bg7 {[%clk 0:03:00.4]} 6. Nc2 {[%clk 0:02:56.4]} 6... f5 {[%clk 0:02:57]}
7. g3 {[%clk 0:02:52.2]} 7... Nf6 {[%clk 0:02:56.6]} 8. Bg2 {[%clk 0:02:52.1]}
8... O-O {[%clk 0:02:57.1]} 9. O-O {[%clk 0:02:52]} 9... Kh8 {[%clk 0:02:53.5]}
10. h3 {[%clk 0:02:38.3]} 10... b6 {[%clk 0:02:47]} 11. Be3 {[%clk 0:02:37.2]}
11... Bb7 {[%clk 0:02:46]} 12. Rb1 {[%clk 0:02:36.8]} 12... e5 {[%clk
0:02:27.2]} 13. Bg5 {[%clk 0:02:22.7]} 13... Qe8 {[%clk 0:02:21.3]} 14. Qd2
{[%clk 0:02:14.5]} 14... Rc8 {[%clk 0:02:16.1]} 15. b3 {[%clk 0:02:08.9]} 15...
e4 {[%clk 0:02:12]} 16. Bh6 {[%clk 0:02:04.8]} 16... Ne5 {[%clk 0:02:11.6]} 17.
Bxg7+ {[%clk 0:01:47.6]} 17... Kxg7 {[%clk 0:02:11.4]} 18. Ne3 {[%clk
0:01:46.2]} 18... h6 {[%clk 0:02:03.7]} 19. Ncd5 {[%clk 0:01:43.8]} 19... Nxd5
{[%clk 0:02:00.8]} 20. Nxd5 {[%clk 0:01:43.7]} 20... Bxd5 {[%clk 0:01:55]} 21.
Qxd5 {[%clk 0:01:41.3]} 21... Qe6 {[%clk 0:01:52.8]} 22. Rfd1 {[%clk 0:01:33.3]}
22... Qxd5 {[%clk 0:01:37.6]} 23. Rxd5 {[%clk 0:01:32.7]} 23... Rc5 {[%clk
0:01:37.9]} 24. Rbd1 {[%clk 0:01:25.3]} 24... Rfc8 {[%clk 0:01:34.6]} 25. f4
{[%clk 0:01:19]} 25... exf3 {[%clk 0:01:30.5]} 26. exf3 {[%clk 0:01:18.3]} 26...
Rxd5 {[%clk 0:01:27.2]} 27. Rxd5 {[%clk 0:01:15]} 27... Rc5 {[%clk 0:01:27.6]}
28. Rd2 {[%clk 0:00:45.7]} 28... Rc7 {[%clk 0:01:22.3]} 29. f4 {[%clk
0:00:38.6]} 29... Nc6 {[%clk 0:01:16.6]} 30. Bxc6 {[%clk 0:00:37.3]} 30... dxc6
{[%clk 0:01:16.8]} 31. Rd6 {[%clk 0:00:37.3]} 31... c5 {[%clk 0:01:16.8]} 32.
Kf2 {[%clk 0:00:37.5]} 32... Re7 {[%clk 0:01:17]} 33. Kf3 {[%clk 0:00:33.6]}
33... Kf7 {[%clk 0:01:17.4]} 34. g4 {[%clk 0:00:33.6]} 34... fxg4+ {[%clk
0:01:15.8]} 35. hxg4 {[%clk 0:00:33.4]} 35... Re6 {[%clk 0:01:10.3]} 36. Rd7+
{[%clk 0:00:29.7]} 36... Re7 {[%clk 0:01:10.8]} 37. Rd5 {[%clk 0:00:23]} 37...
Re1 {[%clk 0:01:07.5]} 38. f5 {[%clk 0:00:19.8]} 38... gxf5 {[%clk 0:01:04.5]}
39. Rxf5+ {[%clk 0:00:19.9]} 39... Kg6 {[%clk 0:01:01.8]} 40. Rd5 {[%clk
0:00:19.1]} 40... Ra1 {[%clk 0:00:59]} 41. Rd2 {[%clk 0:00:18.2]} 41... Kf6
{[%clk 0:00:53.9]} 42. Ke4 {[%clk 0:00:18.2]} 42... Ke6 {[%clk 0:00:52.8]} 43.
Kf4 {[%clk 0:00:17.5]} 43... Rf1+ {[%clk 0:00:52]} 44. Ke4 {[%clk 0:00:16.7]}
44... Kf6 {[%clk 0:00:32.1]} 45. Rh2 {[%clk 0:00:13.7]} 45... Kg5 {[%clk
0:00:28]} 46. Rh5+ {[%clk 0:00:13.7]} 46... Kg6 {[%clk 0:00:28.2]} 47. Rd5
{[%clk 0:00:12.1]} 47... Rf2 {[%clk 0:00:24.4]} 48. a4 {[%clk 0:00:11.7]} 48...
Rb2 {[%clk 0:00:23.2]} 49. Rd3 {[%clk 0:00:11.5]} 49... Kg5 {[%clk 0:00:23.2]}
50. Kf3 {[%clk 0:00:11.4]} 50... Kh4 {[%clk 0:00:20.7]} 51. Kf4 {[%clk
0:00:10.6]} 51... Rf2+ {[%clk 0:00:20.3]} 52. Ke5 {[%clk 0:00:10.7]} 52... Kxg4
{[%clk 0:00:19.5]} 53. Kd6 {[%clk 0:00:09.8]} 53... Rf7 {[%clk 0:00:18.9]} 54.
Ke6 {[%clk 0:00:08.9]} 54... Rh7 {[%clk 0:00:16.8]} 55. a5 {[%clk 0:00:08.9]}
55... h5 {[%clk 0:00:16]} 56. axb6 {[%clk 0:00:08.3]} 56... axb6 {[%clk
0:00:16.9]} 57. Kd6 {[%clk 0:00:08.2]} 57... Rh6+ {[%clk 0:00:16.4]} 58. Kc7
{[%clk 0:00:08.2]} 58... h4 {[%clk 0:00:15.6]} 59. Rd8 {[%clk 0:00:06.6]} 59...
h3 {[%clk 0:00:14.5]} 60. Rg8+ {[%clk 0:00:06.2]} 60... Kf3 {[%clk 0:00:14.3]}
61. Rf8+ {[%clk 0:00:05.5]} 61... Ke4 {[%clk 0:00:14.3]} 62. Re8+ {[%clk
0:00:04.7]} 62... Kd4 {[%clk 0:00:14.5]} 0-1

[Event "*** Titled Tuesday Blitz"]
[Site "Chess.com"]
[Date "2020.12.01"]
[Round "5"]
[White "Klavdia_Nik"]
[Black "HElissalt"]
[Result "1-0"]
[WhiteElo "2069"]
[BlackElo "2218"]
[TimeControl "180+1"]
[EndTime "10:55:49 PST"]
[Termination "Klavdia_Nik won by resignation"]

1. Nf3 {[%clk 0:03:00.6]} 1... d5 {[%clk 0:02:59.3]} 2. c4 {[%clk 0:03:00]} 2...
e6 {[%clk 0:02:55.7]} 3. b3 {[%clk 0:02:59.5]} 3... Nf6 {[%clk 0:02:49.2]} 4.
Bb2 {[%clk 0:02:54.5]} 4... Be7 {[%clk 0:02:49.4]} 5. g3 {[%clk 0:02:54.6]} 5...
O-O {[%clk 0:02:49]} 6. Bg2 {[%clk 0:02:55.2]} 6... b6 {[%clk 0:02:48.8]} 7. O-O
{[%clk 0:02:55.6]} 7... Bb7 {[%clk 0:02:49]} 8. d3 {[%clk 0:02:55.1]} 8... dxc4
{[%clk 0:02:48.6]} 9. bxc4 {[%clk 0:02:54.7]} 9... c5 {[%clk 0:02:48.7]} 10.
Nbd2 {[%clk 0:02:51.9]} 10... Nbd7 {[%clk 0:02:38.8]} 11. a4 {[%clk 0:02:50.6]}
11... a5 {[%clk 0:02:35.1]} 12. Bc3 {[%clk 0:02:46.4]} 12... Qc7 {[%clk
0:02:33.7]} 13. Rb1 {[%clk 0:02:43.6]} 13... Ne8 {[%clk 0:02:31.7]} 14. Qb3
{[%clk 0:02:41.2]} 14... Bf6 {[%clk 0:02:30.9]} 15. e4 {[%clk 0:02:11.5]} 15...
Bxc3 {[%clk 0:02:28.8]} 16. Qxc3 {[%clk 0:02:11.6]} 16... Bc6 {[%clk 0:02:29.4]}
17. Ra1 {[%clk 0:02:04.4]} 17... e5 {[%clk 0:02:23.5]} 18. Rfb1 {[%clk
0:02:03.1]} 18... Qd6 {[%clk 0:02:22.6]} 19. Nf1 {[%clk 0:02:01.7]} 19... Nc7
{[%clk 0:02:22.3]} 20. Ne3 {[%clk 0:02:00.3]} 20... Ne6 {[%clk 0:02:21.9]} 21.
Nd5 {[%clk 0:01:59.1]} 21... Bxd5 {[%clk 0:02:21.6]} 22. cxd5 {[%clk 0:01:57.2]}
22... Nd4 {[%clk 0:02:21.2]} 23. Nxd4 {[%clk 0:01:54.3]} 23... exd4 {[%clk
0:02:20.7]} 24. Qb3 {[%clk 0:01:50.3]} 24... g5 {[%clk 0:02:17.8]} 25. Bh3
{[%clk 0:01:45.3]} 25... Rab8 {[%clk 0:02:17.2]} 26. Bf5 {[%clk 0:01:43]} 26...
Ne5 {[%clk 0:02:16.7]} 27. Kg2 {[%clk 0:01:38.6]} 27... g4 {[%clk 0:02:13.6]}
28. Qc2 {[%clk 0:01:34.7]} 28... h5 {[%clk 0:02:12.4]} 29. h4 {[%clk 0:01:31.6]}
29... Kg7 {[%clk 0:02:11.5]} 30. Qd2 {[%clk 0:01:27.4]} 30... Qh6 {[%clk
0:02:10.8]} 31. Qxh6+ {[%clk 0:01:20.5]} 31... Kxh6 {[%clk 0:02:10.3]} 32. Rb3
{[%clk 0:01:19.2]} 32... Rfd8 {[%clk 0:02:09.9]} 33. Rab1 {[%clk 0:01:17.5]}
33... Rd6 {[%clk 0:02:09.7]} 34. Kf1 {[%clk 0:01:14.5]} 34... Kg7 {[%clk
0:02:08.5]} 35. Ke2 {[%clk 0:01:14]} 35... Kf6 {[%clk 0:02:08.5]} 36. Rb5 {[%clk
0:01:11]} 36... c4 {[%clk 0:01:13.5]} 37. dxc4 {[%clk 0:01:04.5]} 37... d3+
{[%clk 0:01:12.2]} 38. Ke3 {[%clk 0:00:59]} 38... Nxc4+ {[%clk 0:01:11.4]} 39.
Kxd3 {[%clk 0:00:46.8]} 39... Na3 {[%clk 0:01:10]} 40. Kd4 {[%clk 0:00:42.6]}
40... Nxb1 {[%clk 0:01:06.8]} 41. Rxb1 {[%clk 0:00:37.4]} 41... Re8 {[%clk
0:01:05.3]} 42. Rc1 {[%clk 0:00:35.8]} 42... Red8 {[%clk 0:00:43.7]} 43. Rc7
{[%clk 0:00:21.5]} 43... Kg7 {[%clk 0:00:41.4]} 44. Ke3 {[%clk 0:00:19.5]} 44...
Kf6 {[%clk 0:00:39.3]} 45. f3 {[%clk 0:00:19.6]} 45... gxf3 {[%clk 0:00:38.5]}
46. Kxf3 {[%clk 0:00:19.8]} 46... Ke5 {[%clk 0:00:38.8]} 47. Rxf7 {[%clk
0:00:16.4]} 47... Kd4 {[%clk 0:00:37.3]} 48. g4 {[%clk 0:00:16.5]} 48... b5
{[%clk 0:00:37]} 49. axb5 {[%clk 0:00:15.6]} 49... Ra8 {[%clk 0:00:36.2]} 50.
gxh5 {[%clk 0:00:13.6]} 50... a4 {[%clk 0:00:36.6]} 51. Rg7 {[%clk 0:00:12.5]}
51... a3 {[%clk 0:00:36]} 52. Rg1 {[%clk 0:00:13]} 52... a2 {[%clk 0:00:36.4]}
53. Ra1 {[%clk 0:00:13.4]} 53... Rb6 {[%clk 0:00:35.2]} 54. Kf4 {[%clk
0:00:13.2]} 54... Rxb5 {[%clk 0:00:35.2]} 55. e5 {[%clk 0:00:13.3]} 55... Rb6
{[%clk 0:00:31.9]} 56. d6 {[%clk 0:00:12.7]} 56... Kd5 {[%clk 0:00:30.9]} 57. d7
{[%clk 0:00:11.5]} 57... Rb4+ {[%clk 0:00:31]} 58. Kg5 {[%clk 0:00:11.1]} 58...
Kxe5 {[%clk 0:00:31.2]} 59. h6 {[%clk 0:00:09.7]} 59... Rg8+ {[%clk 0:00:30.1]}
60. Bg6 {[%clk 0:00:09.3]} 60... Rg4+ {[%clk 0:00:24.6]} 61. Kxg4 {[%clk
0:00:07.8]} 61... Rxg6+ {[%clk 0:00:23.5]} 62. Kh5 {[%clk 0:00:08.2]} 62... Rg8
{[%clk 0:00:16.1]} 63. Rxa2 {[%clk 0:00:07.6]} 1-0